bitfinex-derivatives/quotes_BTCF0:USTF0_20250711
["timestamp","ask_amount","ask_price","bid_price","bid_amount"]
[1752253072704,0.84115657,117530.0,117520.0,0.82160521]
[1752253073106,0.84115657,117530.0,117520.0,0.85230521]
[1752253073606,0.80805657,117530.0,117520.0,0.85230521]
[1752253075910,0.20384118,117530.0,117520.0,1.21310521]
[1752253076101,0.09668271,117530.0,117520.0,1.6160074]
[1752253076707,0.09668271,117530.0,117520.0,1.21448521]
[1752253076901,0.20384118,117530.0,117520.0,1.21448521]
[1752253078103,0.09668271,117530.0,117520.0,1.21448521]
[1752253078409,0.06547271,117530.0,117520.0,1.6160074]
[1752253081204,0.23556581,117530.0,117520.0,1.6160074]
[1752253081404,0.23556581,117530.0,117520.0,1.6170074]
[1752253081604,0.26677581,117530.0,117520.0,1.21548521]
[1752253082010,0.668298,117530.0,117520.0,1.21548521]
[1752253083705,0.668298,117530.0,117520.0,0.85330521]
[1752253084104,0.668298,117530.0,117520.0,0.85274521]
[1752253084708,0.668298,117530.0,117520.0,1.21354521]
[1752253085410,0.668298,117530.0,117520.0,1.19971002]
[1752253086012,0.668298,117530.0,117520.0,1.13695002]
[1752253086315,0.733498,117530.0,117520.0,1.13695002]
[1752253086512,0.733498,117530.0,117520.0,0.77615002]
[1752253086708,1.094298,117530.0,117520.0,0.75678023]
[1752253088110,0.733498,117530.0,117520.0,0.75678023]
[1752253091216,0.71711529,117530.0,117520.0,0.75678023]
[1752253094526,1.07791529,117530.0,117520.0,0.75678023]
[1752253094824,1.07791529,117530.0,117520.0,0.73519975]
[1752253095024,1.07791529,117530.0,117520.0,0.12867975]
[1752253096023,1.68391529,117530.0,117520.0,0.12867975]
[1752253096422,1.07791529,117530.0,117520.0,0.16067975]
[1752253096827,0.71711529,117530.0,117520.0,0.16067975]
[1752253097022,0.71711529,117530.0,117520.0,0.15967975]
[1752253097227,0.71711529,117530.0,117520.0,0.16188975]
[1752253098530,0.65191529,117530.0,117520.0,0.52268975]
[1752253098732,0.65191529,117530.0,117520.0,0.55468975]
[1752253099231,0.2503931,117530.0,117520.0,0.55468975]
[1752253099424,0.65191529,117530.0,117520.0,0.55468975]
[1752253100131,0.2503931,117530.0,117520.0,0.55468975]
[1752253100328,0.65191529,117530.0,117520.0,0.55468975]
[1752253105532,0.75911559,117530.0,117520.0,0.55468975]
[1752253105729,0.75911559,117530.0,117520.0,0.19388975]
[1752253105929,0.79131559,117530.0,117520.0,0.19388975]
[1752253106130,0.79131559,117530.0,117520.0,0.19167975]
[1752253106334,0.82201559,117530.0,117520.0,0.19167975]
[1752253107135,0.82201559,117530.0,117520.0,0.17784421]
[1752253109239,0.79131559,117530.0,117520.0,0.18005421]
[1752253109631,0.68411529,117530.0,117520.0,0.18005421]
[1752253111138,0.0803,117530.0,117520.0,0.54085421]
[1752253111433,0.0803,117530.0,117520.0,0.9437564]
[1752253111434,0.35761211,117530.0,117520.0,0.9437564]
[1752253111941,0.35761211,117530.0,117520.0,0.54233421]
[1752253112441,0.18751901,117530.0,117520.0,0.54233421]
[1752253115341,0.18751901,117530.0,117520.0,0.9438564]
[1752253116837,0.15630901,117530.0,117520.0,0.9438564]
[1752253117345,0.04909,117530.0,117520.0,0.9438564]
[1752253118047,0.04909,117530.0,117520.0,0.9448564]
[1752253118347,0.00550678,117530.0,117520.0,0.9446564]
[1752253119848,0.11272579,117530.0,117520.0,0.9446564]
[1752253122148,0.00550678,117530.0,117520.0,0.9446564]
[1752253122553,0.11272579,117530.0,117520.0,0.9446564]
[1752253122848,0.10921901,117530.0,117520.0,0.9446564]
[1752253123742,0.002,117530.0,117520.0,0.9446564]
[1752253123942,0.0483,117530.0,117520.0,0.9446564]
[1752253125447,0.0483,117530.0,117520.0,0.9308219]
[1752253127048,0.07888,117530.0,117520.0,0.9308219]
[1752253127947,0.2489731,117530.0,117520.0,0.52929971]
[1752253128147,0.65049529,117530.0,117520.0,1.73741971]
[1752253128749,0.2489731,117530.0,117520.0,1.73741971]
[1752253129054,0.65049529,117530.0,117520.0,1.73741971]
[1752253129650,0.48040219,117530.0,117520.0,1.73741971]
[1752253129846,0.65049529,117530.0,117520.0,1.73741971]
[1752253130049,0.7577143,117530.0,117520.0,1.82571081]
[1752253130453,0.7577144,117530.0,117520.0,1.82571081]
[1752253131452,0.5876212,117530.0,117520.0,1.82571081]
[1752253132662,0.7577144,117530.0,117520.0,1.82571081]
[1752253132850,0.65049539,117530.0,117520.0,1.82571081]
[1752253136952,0.65049539,117530.0,117520.0,0.22341081]
[1752253137154,0.68169539,117530.0,117520.0,0.15978251]
[1752253137352,0.8191144,117530.0,117520.0,0.15978251]
[1752253138158,1.07269539,117530.0,117520.0,0.0002]
[1752253138358,1.47421758,117530.0,117520.0,0.0002]
[1752253138551,1.47421758,117530.0,117520.0,0.1703077]
[1752253138748,1.07269539,117530.0,117520.0,0.0002]
[1752253139552,1.79742623,117530.0,117520.0,0.0002]
[1752253139748,0.2469877,117520.0,117510.0,0.0001]
[1752253139952,2.09552523,117520.0,117510.0,0.1702221]
[1752253140960,2.16402355,117520.0,117510.0,0.1702221]
[1752253141252,1.76250136,117520.0,117510.0,0.1702221]
[1752253141459,1.76050136,117520.0,117510.0,0.1702221]
[1752253141756,1.76250136,117520.0,117510.0,0.1702221]
[1752253143455,1.76242136,117520.0,117510.0,0.1702221]
[1752253144154,1.7711618,117520.0,117510.0,0.1702221]
[1752253144558,2.17268399,117520.0,117510.0,0.1702221]
[1752253144758,2.17268399,117520.0,117510.0,0.0001]
[1752253145056,2.17268399,117520.0,117510.0,0.1702222]
[1752253145559,2.17268399,117520.0,117510.0,0.0001]
[1752253146150,0.7792535,117520.0,117510.0,0.2442822]
[1752253146356,1.78381569,117520.0,117510.0,0.2017222]
[1752253146556,1.81681569,117520.0,117510.0,0.2017222]
[1752253147058,1.69378304,117520.0,117510.0,0.2017222]
[1752253148658,1.70211393,117520.0,117510.0,0.2017222]
[1752253148860,1.69378304,117520.0,117510.0,0.2017222]
[1752253149356,1.69378304,117520.0,117510.0,0.2319222]
[1752253149863,1.06074304,117520.0,117510.0,0.2319222]
[1752253150063,1.66370304,117520.0,117510.0,0.2648222]
[1752253152062,1.77075893,117520.0,117510.0,0.2648222]
[1752253152664,1.40995893,117520.0,117510.0,0.6256222]
[1752253152962,1.40995893,117520.0,117510.0,0.2648222]
[1752253153356,0.20236904,117520.0,117510.0,0.70890439]
[1752253153556,0.20236904,117520.0,117510.0,2.27514439]
[1752253153957,0.09531315,117520.0,117510.0,2.27514439]
[1752253154966,0.66694304,117520.0,117510.0,1.8736222]
[1752253155864,0.09531315,117520.0,117510.0,1.8736222]
[1752253156060,0.09331315,117520.0,117510.0,1.8736222]
[1752253156262,0.09351315,117520.0,117510.0,1.8738222]
[1752253156761,0.20056904,117520.0,117510.0,1.8738222]
[1752253157665,0.37067674,117520.0,117510.0,1.8738222]
[1752253160069,0.77219893,117520.0,117510.0,1.8738222]
[1752253160470,0.66514304,117520.0,117510.0,1.8738222]
[1752253161168,0.49503534,117520.0,117510.0,1.8738222]
[1752253163974,0.09351315,117520.0,117510.0,2.27534439]
[1752253164268,0.09351315,117520.0,117510.0,1.8738222]
[1752253164469,0.20056904,117520.0,117510.0,1.8738222]
[1752253164867,0.37067674,117520.0,117510.0,1.8738222]
[1752253165972,0.77219893,117520.0,117510.0,1.8738222]
[1752253166371,0.77219893,117520.0,117510.0,1.4704622]
[1752253167679,0.77219893,117520.0,117510.0,1.45662559]
[1752253169071,0.77219893,117520.0,117510.0,1.81742559]
[1752253170675,0.77219893,117520.0,117510.0,1.84624559]
[1752253170876,0.37067674,117520.0,117510.0,1.84624559]
[1752253171072,0.20056904,117520.0,117510.0,1.84624559]
[1752253171271,0.37067674,117520.0,117510.0,1.84624559]
[1752253171471,0.77219893,117520.0,117510.0,1.84624559]
[1752253172779,0.37067674,117520.0,117510.0,1.84624559]
[1752253173577,0.77219893,117520.0,117510.0,1.84624559]
[1752253174079,0.77219893,117520.0,117510.0,1.48544559]
[1752253174377,0.77219893,117520.0,117510.0,1.84624559]
[1752253177778,0.77219893,117520.0,117510.0,1.83240935]
[1752253178076,0.66514304,117520.0,117510.0,1.83240935]
[1752253178775,0.01663315,117520.0,117510.0,1.83240935]
[1752253178980,0.0002,117520.0,117510.0,2.25179505]
[1752253180470,0.0002,117520.0,117510.0,2.75179505]
[1752253180972,0.0002,117520.0,117510.0,2.75279505]
[1752253182576,0.47767219,117520.0,117510.0,2.35127286]
[1752253183082,0.64777989,117520.0,117510.0,1.85127286]
[1752253185276,0.64777989,117520.0,117510.0,1.49047286]
[1752253185476,0.64777989,117520.0,117510.0,1.46165286]
[1752253186277,0.64777989,117520.0,117510.0,1.82245286]
[1752253186482,0.64777989,117520.0,117510.0,1.83743286]
[1752253186673,0.64777989,117520.0,117510.0,1.47663286]
[1752253187081,0.64777989,117520.0,117510.0,1.83743286]
[1752253188081,0.75497733,117520.0,117510.0,1.83743286]
[1752253188981,0.75497733,117520.0,117510.0,1.82245286]
[1752253190285,0.75497733,117520.0,117510.0,1.80458935]
[1752253190585,0.75497733,117520.0,117510.0,1.44378935]
[1752253194080,0.75497733,117520.0,117510.0,0.77572935]
[1752253194382,0.81997733,117520.0,117510.0,0.17524935]
[1752253194884,0.71277989,117520.0,117510.0,0.17524935]
[1752253196083,1.07357989,117520.0,117510.0,0.16141226]
[1752253196282,0.71277989,117520.0,117510.0,0.16041226]
[1752253196685,1.07357989,117520.0,117510.0,0.16041226]
[1752253196882,1.18077217,117520.0,117510.0,0.16041226]
[1752253197588,1.07357989,117520.0,117510.0,0.16041226]
[1752253198085,1.07357989,117520.0,117510.0,0.17810226]
[1752253198282,1.67393989,117520.0,117510.0,0.20820226]
[1752253200186,1.07357989,117520.0,117510.0,0.20820226]
[1752253200485,1.67381989,117520.0,117510.0,0.20820226]
[1752253201482,1.07357989,117520.0,117510.0,0.20820226]
[1752253201781,1.67381989,117520.0,117510.0,0.20820226]
[1752253201989,1.67373989,117520.0,117510.0,0.20820226]
[1752253202286,1.78093179,117520.0,117510.0,0.20820226]
[1752253203386,1.42864601,117520.0,117510.0,0.20820226]
[1752253203685,1.42007577,117520.0,117510.0,0.20820226]
[1752253206479,1.31293989,117520.0,117510.0,0.20820226]
[1752253207385,1.68211219,117520.0,117510.0,0.04799]
[1752253207691,1.08195219,117520.0,117510.0,0.04799]
[1752253207882,1.68199219,117520.0,117510.0,0.2181119]
[1752253208383,1.68199219,117520.0,117510.0,0.04799]
[1752253208784,1.68199219,117520.0,117510.0,0.0303]
[1752253209285,1.78910664,117520.0,117510.0,0.0303]
[1752253209683,1.68199219,117520.0,117510.0,0.0303]
[1752253209882,2.19063535,117520.0,117510.0,0.0002]
[1752253210388,2.08351438,117520.0,117510.0,0.0002]
[1752253210781,2.19063535,117520.0,117510.0,0.0002]
[1752253212479,2.19163535,117520.0,117510.0,0.0002]
[1752253212679,2.15503047,117520.0,117510.0,0.0002]
[1752253213589,1.55499047,117520.0,117510.0,0.0002]
[1752253213889,2.15483047,117520.0,117510.0,0.1703219]
[1752253214092,2.15483047,117520.0,117510.0,0.0002]
[1752253214291,2.15483047,117520.0,117510.0,0.1703219]
[1752253214789,2.15479047,117520.0,117510.0,0.1703219]
[1752253215194,1.55499047,117520.0,117510.0,0.1703219]
[1752253215390,2.15475047,117520.0,117510.0,0.1703219]
[1752253215796,1.15346828,117520.0,117510.0,0.1703219]
[1752253215985,1.25791219,117520.0,117510.0,0.1880119]
[1752253216187,0.65815219,117520.0,117510.0,0.2517119]
[1752253216386,1.25787219,117520.0,117510.0,0.2517119]
[1752253217188,1.25783219,117520.0,117510.0,0.2517119]
[1752253217494,1.25763219,117520.0,117510.0,0.23787433]
[1752253217789,0.65795219,117520.0,117510.0,0.23787433]
[1752253218094,1.25763219,117520.0,117510.0,0.23787433]
[1752253218593,1.61843219,117520.0,117510.0,0.2338219]
[1752253218793,2.01995438,117520.0,117510.0,0.2338219]
[1752253218993,1.61843219,117520.0,117510.0,0.2338219]
[1752253219493,2.01995438,117520.0,117510.0,0.0637]
[1752253219696,1.65043219,117520.0,117510.0,0.2338219]
[1752253219884,2.05187438,117520.0,117510.0,0.2338219]
[1752253220192,1.65035219,117520.0,117510.0,0.2338219]
[1752253221291,1.65035219,117520.0,117510.0,0.0637]
[1752253221887,1.65035219,117520.0,117510.0,0.2338219]
[1752253221888,1.64197989,117520.0,117510.0,0.2338219]
[1752253222093,1.64197989,117520.0,117510.0,0.0637]
[1752253223097,2.04350208,117520.0,117510.0,0.0637]
[1752253223296,2.05209564,117520.0,117510.0,0.0637]
[1752253223997,2.05209564,117520.0,117500.0,0.18767265]
[1752253223998,0.1701219,117510.0,117500.0,0.18767265]
[1752253224198,0.75587705,117510.0,117500.0,0.05043685]
[1752253224496,1.35531705,117510.0,117500.0,0.27066325]
[1752253225796,1.24813409,117510.0,117500.0,0.27066325]
[1752253226193,1.71614026,117510.0,117500.0,0.10052685]
[1752253226397,1.35534026,117510.0,117500.0,0.08283685]
[1752253226592,1.35534026,117510.0,117500.0,0.25297325]
[1752253226798,1.24813409,117510.0,117500.0,0.25297325]
[1752253226999,1.60893409,117510.0,117500.0,0.08283685]
[1752253227499,1.79498674,117510.0,117500.0,0.06899846]
[1752253227701,1.79498674,117510.0,117500.0,0.23913486]
[1752253228199,1.64195409,117510.0,117500.0,0.06899846]
[1752253228400,1.64195409,117510.0,117500.0,0.23913486]
[1752253229098,1.64195409,117510.0,117500.0,0.06899846]
[1752253229600,1.64195409,117510.0,117500.0,0.00369846]
[1752253229801,1.67485409,117510.0,117500.0,0.00369846]
[1752253230001,1.67485409,117510.0,117500.0,0.03619846]
[1752253230303,1.82801406,117510.0,117500.0,0.20633486]
[1752253230500,1.82801406,117510.0,117500.0,0.23763486]
[1752253231004,1.82801406,117510.0,117500.0,0.06749846]
[1752253231201,1.82801406,117510.0,117500.0,0.23763486]
[1752253232004,1.82801406,117510.0,117500.0,0.06749846]
[1752253233607,1.22865406,117510.0,117500.0,0.23763476]
[1752253233803,1.16265406,117510.0,117500.0,0.23763476]
[1752253234103,1.16285406,117510.0,117500.0,0.23783476]
[1752253234306,1.00969409,117510.0,117500.0,0.23783476]
[1752253235406,0.6081719,117510.0,117500.0,0.23783476]
[1752253235906,1.00969409,117510.0,117500.0,0.23783476]
[1752253236808,1.16287511,117510.0,117500.0,0.23783476]
[1752253237404,0.40055292,117510.0,117500.0,0.25552476]
[1752253237608,1.40111511,117510.0,117500.0,0.25552476]
[1752253237809,0.40055292,117510.0,117500.0,0.26658476]
[1752253238009,0.9093045,117510.0,117500.0,0.26658476]
[1752253238305,0.9093045,117510.0,117500.0,0.25562476]
[1752253238509,0.75612348,117510.0,117500.0,0.25562476]
[1752253242012,0.35460129,117510.0,117500.0,0.25562476]
[1752253242213,0.75612348,117510.0,117500.0,0.25562476]
[1752253242410,0.35460129,117510.0,117500.0,0.25562476]
[1752253242608,0.75612348,117510.0,117500.0,0.61642476]
[1752253242808,0.35460129,117510.0,117500.0,0.61642476]
[1752253243010,0.75612348,117510.0,117500.0,0.61642476]
[1752253243615,0.64889409,117510.0,117500.0,0.61642476]
[1752253245717,0.64889409,117510.0,117500.0,0.25562476]
[1752253245914,0.64889409,117510.0,117500.0,0.61642476]
[1752253247415,0.07725,117510.0,117500.0,1.62738695]
[1752253247618,0.0456,117510.0,117500.0,1.62738695]
[1752253247820,0.0456,117510.0,117500.0,1.22586476]
[1752253248017,0.0456,117510.0,117500.0,1.62738695]
[1752253248018,0.0002,117510.0,117500.0,1.62738695]
[1752253248912,0.04539,117520.0,117510.0,0.1701219]
[1752253249117,0.04539,117520.0,117510.0,1.02631409]
[1752253250122,0.2154974,117520.0,117510.0,0.66551409]
[1752253250321,0.64930959,117520.0,117510.0,1.2233919]
[1752253251323,0.64930959,117520.0,117510.0,1.22107424]
[1752253251624,0.64930959,117520.0,117510.0,1.23179424]
[1752253251824,0.64930959,117520.0,117510.0,1.22107424]
[1752253252124,1.41163178,117520.0,117510.0,0.2032219]
[1752253252317,1.47443178,117520.0,117510.0,0.2032219]
[1752253252514,1.07290959,117520.0,117510.0,0.2032219]
[1752253252724,1.47443178,117520.0,117510.0,0.0331]
[1752253252921,0.2478019,117510.0,117500.0,0.88886556]
[1752253253124,0.64932409,117510.0,117500.0,0.87683396]
[1752253254326,0.64932409,117510.0,117500.0,0.87783396]
[1752253255633,0.64932409,117510.0,117500.0,0.89498396]
[1752253255836,0.64932409,117510.0,117500.0,0.89398396]
[1752253256434,0.2478019,117510.0,117500.0,0.89398396]
[1752253256734,0.64932409,117510.0,117500.0,0.89398396]
[1752253260534,1.01012409,117510.0,117500.0,0.00379846]
[1752253260733,1.01012409,117510.0,117500.0,0.17393486]
[1752253260929,1.07502409,117510.0,117500.0,0.00379846]
[1752253261330,1.07502409,117510.0,117500.0,0.0001]
[1752253261535,1.07502409,117510.0,117500.0,0.1702364]
[1752253262531,1.07602409,117510.0,117500.0,0.1702364]
[1752253263037,1.07602409,117510.0,117500.0,0.0001]
[1752253263834,1.07702409,117510.0,117500.0,0.1702364]
[1752253264236,1.67514409,117510.0,117500.0,0.1859264]
[1752253264439,1.2736219,117510.0,117500.0,0.1859264]
[1752253264738,1.67514409,117510.0,117500.0,0.1702364]
[1752253266443,1.67514409,117510.0,117500.0,0.0001]
[1752253266642,1.67534409,117510.0,117500.0,0.0003]
[1752253267241,1.07722409,117510.0,117500.0,0.0003]
[1752253267442,1.67526409,117510.0,117500.0,0.0003]
[1752253267638,1.67526409,117510.0,117500.0,0.1704364]
[1752253267839,1.07722409,117510.0,117500.0,0.1704364]
[1752253268039,1.67526409,117510.0,117500.0,0.1704364]
[1752253268438,1.67526409,117510.0,117500.0,0.0003]
[1752253268639,1.67526409,117510.0,117500.0,0.1704364]
[1752253268844,1.67526409,117510.0,117500.0,0.0003]
[1752253269145,1.67506409,117510.0,117500.0,0.00013414]
[1752253269842,1.78230685,117510.0,117500.0,0.00013414]
[1752253270343,1.78226685,117510.0,117500.0,0.00013414]
[1752253270541,1.67502409,117510.0,117500.0,0.00013414]
[1752253271146,1.7821242,117510.0,117500.0,0.00013414]
[1752253271945,1.67502409,117510.0,117500.0,0.00013414]
[1752253272135,1.78211374,117510.0,117500.0,0.00013414]
[1752253273045,1.67502409,117510.0,117500.0,0.00013414]
[1752253273746,1.78209948,117510.0,117500.0,0.00013414]
[1752253276046,1.18409948,117510.0,117500.0,0.17027054]
[1752253276247,1.11919948,117510.0,117500.0,0.17027054]
[1752253276451,1.71703948,117510.0,117500.0,0.20207054]
[1752253276646,1.74913948,117510.0,117500.0,0.20207054]
[1752253276839,1.78033948,117510.0,117500.0,0.20207054]
[1752253277845,1.37881729,117510.0,117500.0,0.20207054]
[1752253278046,1.78033948,117510.0,117500.0,0.20207054]
[1752253278246,1.67326409,117510.0,117500.0,0.20207054]
[1752253278648,1.67326409,117510.0,117500.0,0.03193414]
[1752253278849,1.67326409,117510.0,117500.0,0.20207054]
[1752253279251,1.67326409,117510.0,117500.0,0.03193414]
[1752253279449,1.67326409,117510.0,117500.0,0.20207054]
[1752253279649,1.67326409,117510.0,117500.0,0.03193414]
[1752253281252,1.82644511,117510.0,117500.0,0.00013414]
[1752253281858,1.82644511,117510.0,117500.0,5.594e-05]
[1752253282951,1.82644511,117510.0,117500.0,0.03255594]
[1752253284052,1.82644511,117510.0,117500.0,0.20269234]
[1752253284547,1.22860511,117510.0,117500.0,0.20269234]
[1752253284752,1.22860511,117510.0,117500.0,0.23279234]
[1752253284753,1.16530511,117510.0,117500.0,0.23279234]
[1752253284953,0.40298292,117510.0,117500.0,0.24721234]
[1752253285152,0.2498019,117510.0,117500.0,0.60801234]
[1752253285448,0.35687739,117510.0,117500.0,0.61702234]
[1752253285848,0.18675549,117510.0,117500.0,1.01854453]
[1752253286255,0.07968,117510.0,117500.0,0.61702234]
[1752253286649,0.1544692,117510.0,117500.0,1.01854453]
[1752253287454,0.3245911,117510.0,117500.0,1.01854453]
[1752253287853,0.1544692,117510.0,117500.0,1.01854453]
[1752253288054,0.1524692,117510.0,117500.0,1.01854453]
[1752253288354,0.04539,117510.0,117500.0,1.31844453]
[1752253288755,0.2155119,117510.0,117500.0,0.91692234]
[1752253288953,0.2452119,117510.0,117500.0,1.31844453]
[1752253290251,0.3522911,117510.0,117500.0,1.31844453]
[1752253291956,0.3522911,117510.0,117500.0,0.91692234]
[1752253292455,0.3522911,117510.0,117500.0,1.31844453]
[1752253293456,0.75381329,117510.0,117500.0,0.89407545]
[1752253293653,0.75381329,117510.0,117500.0,0.53327545]
[1752253294156,0.75381329,117510.0,117500.0,0.89407545]
[1752253294355,0.75381329,117510.0,117500.0,0.59417545]
[1752253294655,0.3522911,117510.0,117500.0,0.59417545]
[1752253294848,0.75381329,117510.0,117500.0,0.59417545]
[1752253296362,0.64673409,117510.0,117500.0,0.59417545]
[1752253296748,0.75381754,117510.0,117500.0,0.59417545]
[1752253297151,0.64673409,117510.0,117500.0,0.59417545]
[1752253297352,0.75381814,117510.0,117500.0,0.59417545]
[1752253298964,0.75381814,117510.0,117500.0,0.23337545]
[1752253299261,0.75381814,117510.0,117500.0,0.59417545]
[1752253303357,0.75381814,117510.0,117500.0,0.58033795]
[1752253303862,0.64673409,117510.0,117500.0,0.58033795]
[1752253305055,0.75383195,117510.0,117500.0,0.58033795]
[1752253305361,0.64673409,117510.0,117500.0,0.58033795]
[1752253306361,0.7538453,117510.0,117500.0,0.58033795]
[1752253307165,0.64673409,117510.0,117500.0,0.58033795]
[1752253307360,0.64673409,117510.0,117500.0,0.59810103]
[1752253307561,0.04539,117510.0,117500.0,1.00719322]
[1752253308257,0.70800028,117530.0,117520.0,0.1822275]
[1752253308461,0.30647809,117530.0,117520.0,0.1822275]
[1752253308670,0.30647809,117530.0,117520.0,0.2150275]
[1752253308971,0.09384929,117530.0,117520.0,0.5758275]
[1752253309167,0.26394229,117530.0,117520.0,0.5758275]
[1752253309464,0.26494229,117530.0,117520.0,0.5758275]
[1752253309769,0.26494229,117530.0,117520.0,0.5833975]
[1752253309962,0.26514229,117530.0,117520.0,0.5835975]
[1752253310767,0.775133,117530.0,117520.0,0.5835975]
[1752253311065,0.775133,117530.0,117520.0,0.5760275]
[1752253311858,0.66802179,117530.0,117520.0,0.5760275]
[1752253313156,0.77516723,117530.0,117520.0,0.5760275]
[1752253313967,0.77516723,117530.0,117520.0,0.56219194]
[1752253314763,0.66802179,117530.0,117520.0,0.40592]
[1752253314967,0.66802179,117530.0,117520.0,0.5760275]
[1752253315168,0.72952179,117530.0,117520.0,0.5760275]
[1752253315371,0.83668869,117530.0,117520.0,0.5760275]
[1752253316172,0.83668869,117530.0,117520.0,0.2152275]
[1752253318071,0.88270281,117530.0,117520.0,0.2152275]
[1752253318969,0.88270281,117530.0,117520.0,0.1824275]
[1752253319172,0.88270281,117530.0,117520.0,0.7790275]
[1752253321375,0.48118062,117530.0,117520.0,0.7790275]
[1752253321570,0.88270281,117530.0,117520.0,0.7790275]
[1752253322276,0.88270281,117530.0,117520.0,0.8108275]
[1752253323270,0.24958762,117530.0,117520.0,1.21234969]
[1752253323574,0.24958762,117530.0,117520.0,1.58008969]
[1752253324175,0.24958762,117530.0,117520.0,1.1785675]
[1752253324372,0.24958762,117530.0,117520.0,1.58008969]
[1752253324567,0.0964066,117530.0,117520.0,1.58008969]
[1752253324869,0.0964066,117530.0,117520.0,1.1785675]
[1752253326065,0.49792879,117530.0,117520.0,1.1716275]
[1752253326265,0.66802179,117530.0,117520.0,1.1716275]
[1752253326478,0.49792879,117530.0,117520.0,1.1716275]
[1752253326677,0.49692879,117530.0,117520.0,1.1716275]
[1752253327778,0.49692879,117530.0,117520.0,1.2018275]
[1752253327977,0.60402943,117530.0,117520.0,1.2018275]
[1752253328379,0.77412243,117530.0,117520.0,1.2018275]
[1752253328679,0.77312243,117530.0,117520.0,1.2018275]
[1752253329774,0.60302943,117530.0,117520.0,1.2018275]
[1752253330077,0.60302943,117530.0,117520.0,1.2082175]
[1752253330278,0.20150724,117530.0,117520.0,1.2082175]
[1752253330877,0.20150724,117530.0,117520.0,1.60973969]
[1752253331079,0.17108724,117530.0,117520.0,1.60973969]
[1752253331581,0.20111724,117530.0,117520.0,1.60973969]
[1752253332083,0.20111724,117530.0,117520.0,2.10973969]
[1752253332984,0.60263943,117530.0,117520.0,1.7018275]
[1752253334072,0.77273243,117530.0,117520.0,1.7018275]
[1752253334278,0.77273243,117530.0,117520.0,1.7012675]
[1752253334588,0.80363243,117530.0,117520.0,1.2012675]
[1752253334883,0.69653179,117530.0,117520.0,1.2012675]
[1752253335386,0.69824179,117530.0,117520.0,1.1891475]
[1752253335778,0.29440703,117530.0,117520.0,1.1889475]
[1752253336084,0.69592922,117530.0,117520.0,1.1889475]
[1752253336685,0.8030792,117530.0,117520.0,1.1889475]
[1752253337080,0.8030792,117530.0,117520.0,1.19064927]
[1752253337486,0.69592922,117530.0,117520.0,1.19064927]
[1752253337986,0.77247238,117530.0,117520.0,1.19064927]
[1752253338186,0.16995719,117530.0,117520.0,1.19703927]
[1752253338386,0.16995719,117530.0,117520.0,1.59856146]
[1752253338788,0.12284719,117530.0,117520.0,1.59217146]
[1752253338988,0.16995719,117530.0,117520.0,1.59217146]
[1752253339587,0.09341403,117530.0,117520.0,1.59217146]
[1752253339888,0.1699429,117530.0,117520.0,1.19703927]
[1752253340284,0.1699429,117530.0,117520.0,1.19914941]
[1752253340485,0.57146509,117530.0,117520.0,1.19914941]
[1752253342081,0.1699429,117530.0,117520.0,0.83834941]
[1752253342287,0.1699429,117530.0,117520.0,1.20936941]
[1752253342887,0.1699429,117530.0,117520.0,0.84856941]
[1752253343190,0.57146509,117530.0,117520.0,1.20936941]
[1752253343488,0.57146509,117530.0,117520.0,1.21575941]
[1752253343685,0.57146509,117530.0,117520.0,0.85495941]
[1752253343886,0.57146509,117530.0,117520.0,1.21575941]
[1752253344183,0.1699429,117530.0,117520.0,1.21575941]
[1752253344389,0.0928029,117530.0,117520.0,1.6172816]
[1752253344788,0.1399129,117530.0,117520.0,1.6172816]
[1752253345083,0.06338403,117530.0,117520.0,1.6172816]
[1752253345987,0.06338403,117530.0,117520.0,1.21575941]
[1752253345988,0.49493622,117530.0,117520.0,1.21575941]
[1752253346287,0.1699429,117530.0,117520.0,1.21575941]
[1752253346490,0.1699429,117530.0,117520.0,1.20192501]
[1752253347388,0.09341403,117530.0,117520.0,1.20192501]
[1752253347785,0.16991851,117530.0,117520.0,1.20192501]
[1752253348092,0.09341403,117530.0,117520.0,1.20192501]
[1752253349890,0.16992205,117530.0,117520.0,1.20192501]
[1752253350997,0.09341403,117530.0,117520.0,1.20192501]
[1752253351498,0.16992145,117530.0,117520.0,1.20192501]
[1752253351992,0.74153664,117530.0,117520.0,0.59099487]
[1752253352198,0.66502922,117530.0,117520.0,0.76375487]
[1752253352388,0.72882922,117530.0,117520.0,0.76375487]
[1752253352594,0.72902922,117530.0,117520.0,0.76395487]
[1752253352789,1.08982922,117530.0,117520.0,0.76395487]
[1752253353001,0.72902922,117530.0,117520.0,0.76395487]
[1752253353297,0.8361792,117530.0,117520.0,0.76395487]
[1752253354199,0.91271205,117530.0,117520.0,0.75373487]
[1752253354499,0.8361792,117530.0,117520.0,0.75373487]
[1752253354694,0.8361792,117530.0,117520.0,0.15817487]
[1752253355298,1.08982922,117530.0,117520.0,0.17200927]
[1752253355599,1.09182922,117530.0,117520.0,0.17200927]
[1752253356393,1.68730922,117530.0,117520.0,0.17200927]
[1752253356601,1.68630922,117530.0,117520.0,0.17200927]
[1752253356803,1.68730922,117530.0,117520.0,0.17200927]
[1752253357798,1.79441747,117530.0,117520.0,0.17200927]
[1752253358498,1.09182922,117530.0,117520.0,0.17200927]
[1752253358698,1.68730922,117530.0,117520.0,0.17200927]
[1752253359502,1.79439315,117530.0,117520.0,0.17200927]
[1752253360003,1.79419315,117530.0,117520.0,0.15817262]
[1752253360204,1.68710922,117530.0,117520.0,0.15817262]
[1752253360598,1.68910922,117530.0,117520.0,0.15817262]
[1752253362700,1.68869682,117530.0,117520.0,0.15817262]
[1752253363301,0.245202,117510.0,117500.0,1.8801329]
[1752253363498,0.72318912,117510.0,117500.0,0.6467993]
[1752253363704,0.8171729,117510.0,117500.0,0.2551993]
[1752253364104,0.82581445,117510.0,117500.0,0.2551993]
[1752253364304,0.41565071,117510.0,117500.0,0.2551993]
[1752253364505,0.8181729,117510.0,117500.0,0.2643793]
[1752253364704,0.8181729,117510.0,117500.0,0.2947793]
[1752253364906,0.71112419,117510.0,117500.0,0.2977793]
[1752253365810,0.72742376,117510.0,117500.0,0.2977793]
[1752253367914,0.69492376,117510.0,117500.0,0.2977793]
[1752253368109,0.80197247,117510.0,117500.0,0.3300793]
[1752253369113,0.69492376,117510.0,117500.0,0.3300793]
[1752253369607,0.69492376,117510.0,117500.0,0.25765522]
[1752253369807,0.69492376,117510.0,117500.0,0.30018882]
[1752253370003,0.69492376,117510.0,117500.0,0.28635131]
[1752253373215,1.65092376,117510.0,117500.0,0.003]
[1752253373416,1.65092376,117510.0,117500.0,0.1731365]
[1752253373417,1.68122376,117510.0,117500.0,0.1731365]
[1752253373615,1.23611629,117510.0,117500.0,0.1731365]
[1752253373816,1.63763848,117510.0,117500.0,0.1731365]
[1752253375015,1.04243848,117510.0,117500.0,0.1731365]
[1752253375218,1.60625848,117510.0,117500.0,0.2010465]
[1752253375412,1.60625848,117510.0,117500.0,0.2327465]
[1752253375618,1.60625848,117510.0,117500.0,0.2627465]
[1752253375921,1.24645848,117510.0,117500.0,0.2627465]
[1752253376220,1.60725848,117510.0,117500.0,0.2627465]